Cogmind - Beta 14 @@@ ROGUE MODE // 2025.01.10 @ 20:22:58 Player: Doobadoop Result: Destroyed by G-47 Trooper with Particle Gun Performance ------------- Evolutions (3) 1500 Regions Visited (10) 2000 Robots Destroyed (41) 205 Value Destroyed (1465) 1465 Prototype IDs (0) 0 Alien Tech Used (0) 0 Bonus (455) 455 TOTAL SCORE: 5625 Bonus ------- Follower Combat Kills 155 Aligned with FarCom 300 Cogmind --------- Core Integrity 0/700 Matter 277/300 Energy 100/100 System Corruption 14% Temperature Cool (9) Movement Core (50) Location -7/Factory Parts ------- > --- POWER (2) -------- (None) > --- PROPULSION (4) --- (None) > --- UTILITY (5) ------ Visual Processing Unit Advanced Visual Processing Unit > --- WEAPON (2) ------- (None) > --- INVENTORY (5) ---- (None) Peak State ------------ > --- POWER ------------ Improved Ion Engine Improved Deuterium Engine > --- PROPULSION ------- Carbon-fiber Leg Carbon-fiber Leg Carbon-fiber Leg Titanium Leg > --- UTILITY ---------- Improved Cooling System Medium Storage Unit Visual Processing Unit Advanced Visual Processing Unit Improved Medium Armor Plating > --- WEAPON ----------- Field Laser Assault Cannon > --- INVENTORY -------- Light Angular Momentum Engine Heavy Treads Large Battery Kinecellerator Field Laser Field Laser Improved Datajack [Rating: 41] Favorites ----------- Power Light Nuclear Core Engine Improved Ion Engine Power Core Light Nuclear Core Propulsion Carbon-fiber Leg Treads Heavy Treads Leg Carbon-fiber Leg Wheel Wheel Hover Unit Hover Unit Flight Unit Flight Unit Utility Medium Storage Unit Device Weight Redist. System Storage Medium Storage Unit Processor Visual Processing Unit Protection Hardened Medium Armor Plating Weapon Field Laser Energy Gun Field Laser Energy Cannon Ion Cannon Ballistic Gun Heavy Assault Rifle Ballistic Cannon Assault Cannon Launcher Grenade Launcher Impact Weapon Heavy Hammer Special Melee Weapon Improved Datajack Build | -11 -10 -10 -9 -9 -9 -8 -8 -7 -7 -7 ------- Run | Yrd Mat Min Mat Min Exi Min Mat Fac Was Fac Slots Evolved 6 | . . . 2 . . . 2 2 . . Power 1 | . . . . . . . 1 . . . Propulsion 2 | . . . 2 . . . . . . . Utility 3 | . . . . . . . 1 2 . . Weapon . | . . . . . . . . . . . Parts Attached 65 | 6 12 . 11 . . . 18 8 3 7 Power 10 | 1 2 . 1 . . . 4 1 . 1 Engine 7 | 1 2 . 1 . . . 1 1 . 1 Core 3 | . . . . . . . 3 . . . Reactor . | . . . . . . . . . . . Propulsion 19 | 2 4 . 6 . . . 4 2 . 1 Treads 1 | . . . . . . . . . . 1 Leg 8 | . . . 2 . . . 4 2 . . Wheel 2 | 2 . . . . . . . . . . Hover 6 | . 2 . 4 . . . . . . . Flight 2 | . 2 . . . . . . . . . Utility 15 | 1 5 . . . . . 3 4 . 2 Device 6 | . 3 . . . . . 1 1 . 1 Storage 4 | 1 2 . . . . . . . . 1 Processor 2 | . . . . . . . 1 1 . . Hackware . | . . . . . . . . . . . Protection 3 | . . . . . . . 1 2 . . Artifact . | . . . . . . . . . . . Weapon 21 | 2 1 . 4 . . . 7 1 3 3 Energy Gun 5 | 1 1 . . . . . 1 . 1 1 Energy Cannon 3 | . . . . . . . 3 . . . Ballistic Gun 5 | 1 . . 2 . . . 1 . . 1 Ballistic Cannon 2 | . . . . . . . . 1 1 . Launcher 2 | . . . 1 . . . 1 . . . Special Weapon . | . . . . . . . . . . . Impact Weapon 1 | . . . 1 . . . . . . . Slashing Weapon . | . . . . . . . . . . . Piercing Weapon . | . . . . . . . . . . . Special Melee Weapon 3 | . . . . . . . 1 . 1 1 Unidentified Prototypes . | . . . . . . . . . . . Parts Lost 28 | . 2 . 3 . . . 3 3 . 17 Power 6 | . . . . . . . 2 1 . 3 Propulsion 10 | . 1 . 2 . . . . 2 . 5 Utility 5 | . . . . . . . 1 . . 4 Weapon 7 | . 1 . 1 . . . . . . 5 Highest Loss Streak 17 | . 2 . 2 . . . 1 1 . 17 To Critical Strikes . | . . . . . . . . . . . Average Slot Usage (%) 91 | . 98 100 80 77 77 77 96 99 100 92 Engine 9 | . 14 14 11 11 11 11 4 9 15 13 Core 4 | . . . . . . . 12 5 . . Leg 23 | . . . 6 22 22 22 34 29 30 25 Wheel 2 | . 19 . . . . . . . . . Hover 1 | . 3 28 19 . . . . . . . Device 9 | . 13 14 11 11 11 11 8 6 7 6 Storage 9 | . 13 14 11 11 11 11 9 7 7 7 Processor 6 | . . . . . . . 6 15 15 15 Protection 2 | . . . . . . . 3 6 7 5 Energy Gun 5 | . 18 28 6 . . . 2 7 7 6 Energy Cannon 2 | . . . . . . . 6 6 . . Ballistic Gun 4 | . 9 . 4 11 11 11 2 . . . Ballistic Cannon 1 | . . . . . . . . . 6 6 Impact Weapon 2 | . . . 6 11 11 11 1 . . . Special Melee Weapon 1 | . . . . . . . 4 . . . Peak Build Rating 41 | 6 8 8 11 10 10 10 32 39 41 41 Average Rating 23 | 5 7 8 9 10 10 10 28 36 39 37 On Entrance 15 | . 6 8 8 10 10 10 10 31 39 41 Naked Turns . | . . . . . . . . . . . Heaviest Build 46 | 11 20 16 21 21 21 21 32 46 44 44 Greatest Support 70 | 20 26 18 30 26 26 26 68 62 62 70 Greatest Overweight (x) 8 | . 1 . 1 . . . . . . 8 Average Overweight (x) . | . . . . . . . . . . . Largest Inventory Capacity 10 | 8 10 10 10 10 10 10 10 10 10 10 Average Capacity 9 | 7 9 10 10 10 10 10 10 10 10 9 Most Carried 10 | 3 10 7 7 4 4 5 8 9 8 9 Average Carried 5 | 1 6 7 5 4 4 4 5 7 6 7 Final Capacity 10 | 8 10 10 10 10 10 10 10 10 10 5 Final Carried 8 | 3 7 7 4 4 4 5 7 6 8 . Class Distribution -------------------- 52% | Mutant 47% | Scavenger-Mutant Dominant Class ---------------- Mutant | -10/Materials Mutant | -10/Mines Mutant | -9/Materials Scavenger-Mutant | -9/Mines Scavenger-Mutant | -9/Exiles Scavenger-Mutant | -8/Mines Mutant | -8/Materials Scavenger-Mutant | -7/Factory Mutant | -7/Waste Mutant | -7/Factory Resources | -11 -10 -10 -9 -9 -9 -8 -8 -7 -7 -7 ----------- Run | Yrd Mat Min Mat Min Exi Min Mat Fac Was Fac Matter Collected 1133 | 204 241 . 134 . . 18 291 159 38 48 Remotely . | . . . . . . . . . . . Salvage Created 1624 | . 318 . 61 . . 42 456 621 . 126 Parts 91 | . 20 . 4 . . 2 28 30 . 7 Haulers Intercepted . | . . . . . . . . . . . Recyclers Shooed 2 | . . . . . . . . 2 . . Parts Field Recycled . | . . . . . . . . . . . Retrieved Matter . | . . . . . . . . . . . Parts Self-Destructed . | . . . . . . . . . . . Prevented . | . . . . . . . . . . . Kills | -11 -10 -10 -9 -9 -9 -8 -8 -7 -7 -7 ------- Run | Yrd Mat Min Mat Min Exi Min Mat Fac Was Fac Combat Hostiles Destroyed 32 | . 8 . 2 . . . 9 9 . 4 Melee 1 | . . . . . . . . . . 1 Guns 14 | . 8 . 1 . . . 1 3 . 1 Cannons 14 | . . . . . . . 6 6 . 2 AOE 3 | . . . 1 . . . 2 . . . Classes Destroyed 8 | . 3 . . . . 1 2 2 . . Worker 2 | . . . . . . 2 . . . . Recycler 2 | . . . . . . . . 2 . . Watcher 5 | . 2 . . . . . 1 1 . 1 Swarmer 6 | . 3 . . . . . . . . 3 Grunt 16 | . 5 . 2 . . . 2 6 . 1 Sentry 6 | . . . . . . . 5 1 . . Specialist 2 | . . . . . . . 2 . . . Programmer 2 | . . . . . . . . 2 . . Best Kill Streak 5 | . 3 . 2 . . 1 2 5 . 3 Combat Bots Only 4 | . 3 . 2 . . . 2 4 . 3 Max Kills in Single Turn 1 | . 1 . 1 . . 1 1 1 . 1 Gunslinging . | . . . . . . . . . . . Exploded 1 | . . . 1 . . . 1 . . . Melee 1 | . . . . . . . . . . 1 Uniques/NPCs Destroyed . | . . . . . . . . . . . Combat | -11 -10 -10 -9 -9 -9 -8 -8 -7 -7 -7 -------- Run | Yrd Mat Min Mat Min Exi Min Mat Fac Was Fac Hostile Shots Fired 430 | . 51 . 33 . . . 82 88 . 176 Missed 154 | . 15 . 9 . . . 37 44 . 49 Damage Taken 4057 | . 409 . 314 . . . 685 673 . 1976 Core 893 | . 114 . . . . . 74 84 . 621 Absorbed by Shields . | . . . . . . . . . . . Core Remaining (%) 85 | 100 . 54 . . . 100 86 . . . Volleys Fired 160 | . 32 . 10 . . . 58 37 . 23 Largest 2 | . 2 . 2 . . . 2 2 . 2 Hottest 123 | . 80 . 80 . . . 123 123 . 107 Shots Fired 247 | . 63 . 12 . . . 64 74 . 34 Gun 155 | . 63 . 11 . . . 21 37 . 23 Cannon 84 | . . . . . . . 36 37 . 11 Launcher 8 | . . . 1 . . . 7 . . . Special . | . . . . . . . . . . . Kinetic 82 | . 25 . 7 . . . 15 16 . 19 Thermal 149 | . 32 . 2 . . . 42 58 . 15 Explosive 8 | . . . 1 . . . 7 . . . Electromagnetic 8 | . 6 . 2 . . . . . . . Robot Hit Streak 11 | . 10 . 5 . . . 11 7 . 7 Robot Miss Streak 3 | . 3 . 1 . . . 3 3 . 3 Penetration Max . | . . . . . . . . . . . Secondary Targets 1 | . 1 . . . . . . . . . Max Gunslinging Chain 1 | . 1 . . . . . . . . . Shots Hit Robots 170 | . 42 . 11 . . 2 52 42 . 21 Core Hits 74 | . 17 . 3 . . 1 14 26 . 13 Critical Kills 1 | . . . . . . 1 . . . . Critical Parts Destroyed . | . . . . . . . . . . . Critical Strikes 3 | . . . . . . 1 . . . 2 Burn 2 | . . . . . . . . . . 2 Smash 1 | . . . . . . 1 . . . . Melee Attacks 13 | . . . 3 . . 2 7 . . 1 Impact 6 | . . . 3 . . 2 1 . . . Slashing . | . . . . . . . . . . . Piercing . | . . . . . . . . . . . Sneak Attacks 6 | . . . . . . 2 4 . . . Combat Hostiles . | . . . . . . . . . . . Follow-up Attacks . | . . . . . . . . . . . Damage Inflicted 3624 | . 505 . 273 . . 226 1093 1047 . 480 Guns 1526 | . 505 . 116 . . . 157 437 . 311 Cannons 1395 | . . . . . . . 669 583 . 143 Explosions 262 | . . . 62 . . . 200 . . . Melee 375 | . . . 95 . . 226 54 . . . Ramming 66 | . . . . . . . 13 27 . 26 Kinetic 1019 | . 215 . 84 . . . 123 277 . 320 Thermal 1839 | . 239 . 20 . . . 703 743 . 134 Explosive 262 | . . . 62 . . . 200 . . . Electromagnetic 63 | . 51 . 12 . . . . . . . Impact 375 | . . . 95 . . 226 54 . . . Slashing . | . . . . . . . . . . . Piercing . | . . . . . . . . . . . Highest Corruption 14 | . . . 5 5 5 5 . 7 7 14 Average Corruption 5 | . . . 5 5 5 5 . 3 7 7 Corruption Purged . | . . . . . . . . . . . Corruption Blocked . | . . . . . . . . . . . Effects 59 | . . . 2 1 11 9 . 19 5 12 Message Errors 15 | . . . . 1 3 2 . 2 2 5 Matter Fused 11 | . . . 1 . 2 2 . 3 1 2 Heat Flow Errors 10 | . . . 1 . 2 2 . 3 . 2 Energy Discharges 11 | . . . . . 1 2 . 6 1 1 Parts Rejected 2 | . . . . . . . . 1 . 1 Parts Fused 1 | . . . . . . . . . 1 . Data Loss (minor) 6 | . . . . . 2 . . 3 . 1 Data Loss (major) 2 | . . . . . 1 1 . . . . Misfires 1 | . . . . . . . . 1 . . Overload Shots . | . . . . . . . . . . . Overflow Damage 131 | . . . . . . 75 46 10 . . Projectiles 32 | . . . . . . . 22 10 . . Explosions . | . . . . . . . . . . . Melee 99 | . . . . . . 75 24 . . . Knockbacks 3 | . . . . . . . . 1 . 2 Impact . | . . . . . . . . . . . Kinetic 2 | . . . . . . . . 1 . 1 Secondary 1 | . . . . . . . . . . 1 Self-Inflicted Damage 42 | . . . . . . . 31 . . 11 Shots 1 | . . . . . . . 1 . . . Rammed 6 | . . . . . . . . . . 6 Targets Rammed 15 | . . . . . . . 4 5 . 6 Kicked 9 | . . . . . . . 4 5 . . Crushed . | . . . . . . . . . . . Highest Temperature 327 | . 141 . 127 . 268 185 312 327 . 225 Average Temperature 89 | . 54 . 38 . 124 90 115 103 . 61 Received Heat Transfer 1167 | . 207 . 48 . . . 216 255 . 441 Siege Activations . | . . . . . . . . . . . Robots Corrupted . | . . . . . . . . . . . Combat Hostiles . | . . . . . . . . . . . Parts Fried . | . . . . . . . . . . . Impact Corruptions 3 | . . . . . . 2 1 . . . Robots Melted . | . . . . . . . . . . . Combat Hostiles . | . . . . . . . . . . . Parts Melted 9 | . 1 . 1 . . . 1 5 . 1 Heat Transferred 3560 | . 550 . 50 . . . 1147 1369 . 444 Parts Sabotaged . | . . . . . . . . . . . Parts Stolen . | . . . . . . . . . . . Parts Stripped . | . . . . . . . . . . . Power Chain Reactions . | . . . . . . . . . . . Alert | -11 -10 -10 -9 -9 -9 -8 -8 -7 -7 -7 ------- Run | Yrd Mat Min Mat Min Exi Min Mat Fac Was Fac Peak Influence 233 | . 162 22 233 90 . 10 232 222 55 110 Initial 90 | . . 22 8 90 . . 3 90 55 38 Average 68 | . 34 22 113 90 . 8 89 94 55 47 Maximum Alert Level 1 | . . . 1 . . . 1 1 . . Low Security (%) 97 | 100 100 100 77 100 . 100 99 96 100 100 Level 1 2 | . . . 22 . . . . 3 . . Level 2 . | . . . . . . . . . . . Level 3 . | . . . . . . . . . . . Level 4 . | . . . . . . . . . . . Level 5 . | . . . . . . . . . . . High Security . | . . . . . . . . . . . Max Security . | . . . . . . . . . . . Squads Dispatched 7 | . . . 1 . . . 2 2 . 2 Investigation . | . . . . . . . . . . . Extermination 2 | . . . . . . . . 1 . 1 Reinforcement 4 | . . . 1 . . . 2 . . 1 Assault . | . . . . . . . . . . . Garrison 1 | . . . . . . . . 1 . . Intercept . | . . . . . . . . . . . Searches Triggered . | . . . . . . . . . . . Construction Impeded . | . . . . . . . . . . . Haulers Reinforced . | . . . . . . . . . . . Active Scanning Responses . | . . . . . . . . . . . Cargo Convoy Interrupts . | . . . . . . . . . . . Stealth | -11 -10 -10 -9 -9 -9 -8 -8 -7 -7 -7 --------- Run | Yrd Mat Min Mat Min Exi Min Mat Fac Was Fac Distress Signals 5 | . 2 . . . . . 2 1 . . Communications Jammed . | . . . . . . . . . . . Distress Signals . | . . . . . . . . . . . Times Spotted 73 | . 13 . 9 . . . 20 20 . 11 Peak Tracking Total 7 | . 3 . 6 . . . 3 5 . 7 Tactical Retreats 3 | . 2 . . . . . 1 . . . Traps | -11 -10 -10 -9 -9 -9 -8 -8 -7 -7 -7 ------- Run | Yrd Mat Min Mat Min Exi Min Mat Fac Was Fac Traps Triggered 2 | . . . . . . . . 2 . . Indirectly . | . . . . . . . . . . . Trap Hack Attempts . | . . . . . . . . . . . Triggered . | . . . . . . . . . . . Disarmed . | . . . . . . . . . . . Reprogrammed . | . . . . . . . . . . . Reused . | . . . . . . . . . . . Traps Extracted . | . . . . . . . . . . . Installed . | . . . . . . . . . . . Triggered . | . . . . . . . . . . . Machines | -11 -10 -10 -9 -9 -9 -8 -8 -7 -7 -7 ---------- Run | Yrd Mat Min Mat Min Exi Min Mat Fac Was Fac Machines Disabled 4 | . . . 2 . . . 1 . . 1 Max in Single Turn 1 | . . . 1 . . . 1 . . 1 Machines Repaired . | . . . . . . . . . . . Machines Dismantled . | . . . . . . . . . . . Machines Sabotaged . | . . . . . . . . . . . Overloaded Fab Kills . | . . . . . . . . . . . Hacking | -11 -10 -10 -9 -9 -9 -8 -8 -7 -7 -7 --------- Run | Yrd Mat Min Mat Min Exi Min Mat Fac Was Fac Machines Accessed 3 | . 2 . . . . . . . . 1 Terminals 3 | . 2 . . . . . . . . 1 Fabricators . | . . . . . . . . . . . Repair Stations . | . . . . . . . . . . . Recycling Units . | . . . . . . . . . . . Scanalyzers . | . . . . . . . . . . . Garrison Access . | . . . . . . . . . . . Total Hacks 4 | . 2 . . . . . . . . 2 Successful 3 | . 2 . . . . . . . . 1 Failed 1 | . . . . . . . . . . 1 Catastrophic . | . . . . . . . . . . . Database Lockouts . | . . . . . . . . . . . Manual . | . . . . . . . . . . . Terminals 4 | . 2 . . . . . . . . 2 Fabricators . | . . . . . . . . . . . Repair Stations . | . . . . . . . . . . . Recycling Units . | . . . . . . . . . . . Scanalyzers . | . . . . . . . . . . . Garrison Access . | . . . . . . . . . . . Terminal Hacks 3 | . 2 . . . . . . . . 1 Record 1 | . 1 . . . . . . . . . Alert Level 2 | . 1 . . . . . . . . 1 Fabricator Hacks . | . . . . . . . . . . . Repair Station Hacks . | . . . . . . . . . . . Recycling Unit Hacks . | . . . . . . . . . . . Scanalyzer . | . . . . . . . . . . . Garrison Access Hacks . | . . . . . . . . . . . Unauthorized Hacks . | . . . . . . . . . . . Terminals . | . . . . . . . . . . . Fabricators . | . . . . . . . . . . . Repair Stations . | . . . . . . . . . . . Recycling Units . | . . . . . . . . . . . Scanalyzers . | . . . . . . . . . . . Garrison Access . | . . . . . . . . . . . Data Cores Recovered . | . . . . . . . . . . . Used . | . . . . . . . . . . . Hacking Detections 1 | . . . . . . . . . . 1 Full Trace Events . | . . . . . . . . . . . Feedback Events . | . . . . . . . . . . . Feedback Blocked . | . . . . . . . . . . . Robot Schematics Acquired . | . . . . . . . . . . . Robots Built . | . . . . . . . . . . . Authchips . | . . . . . . . . . . . Time . | . . . . . . . . . . . Total Robot Build Rating . | . . . . . . . . . . . Part Schematics Acquired . | . . . . . . . . . . . Parts Built . | . . . . . . . . . . . Authchips . | . . . . . . . . . . . Time . | . . . . . . . . . . . Total Part Build Rating . | . . . . . . . . . . . Parts Repaired . | . . . . . . . . . . . Time . | . . . . . . . . . . . Parts Recycled . | . . . . . . . . . . . Recycled Matter . | . . . . . . . . . . . Retrieved Matter . | . . . . . . . . . . . Retrieved Components . | . . . . . . . . . . . Parts Scanalyzed . | . . . . . . . . . . . Part Schematics Acquired . | . . . . . . . . . . . Parts Damaged . | . . . . . . . . . . . Bothacking | -11 -10 -10 -9 -9 -9 -8 -8 -7 -7 -7 ------------ Run | Yrd Mat Min Mat Min Exi Min Mat Fac Was Fac Used RIF Installer . | . . . . . . . . . . . Robots Hacked 3 | . . . . . . . 3 . . . Non-combat 2 | . . . . . . . 2 . . . Combat 1 | . . . . . . . 1 . . . Robot Hacks Applied 3 | . . . . . . . 3 . . . parse_system 1 | . . . . . . . 1 . . . no_distress 2 | . . . . . . . 2 . . . Relay Couplers Released . | . . . . . . . . . . . Fabnet Peak Effective % . | . . . . . . . . . . . Robots Rewired . | . . . . . . . . . . . Allies Hacked . | . . . . . . . . . . . Hacks Repelled . | . . . . . . . . . . . Allies | -11 -10 -10 -9 -9 -9 -8 -8 -7 -7 -7 -------- Run | Yrd Mat Min Mat Min Exi Min Mat Fac Was Fac Total Allies 3 | . . 3 . . . . . . . . Largest Group 3 | . . 3 3 2 2 2 2 . . . Highest-Rated Group 40 | . . 40 40 32 32 32 32 . . . Highest-Rated Ally 16 | . . 16 16 16 16 16 16 . . . Total Orders . | . . . . . . . . . . . Ally Attacks 41 | . . . 31 . . . 10 . . . Total Damage 483 | . . . 378 . . . 105 . . . Kills 7 | . . . 6 . . . 1 . . . Allies Corrupted . | . . . . . . . . . . . Allies Melted . | . . . . . . . . . . . Intel | -11 -10 -10 -9 -9 -9 -8 -8 -7 -7 -7 ------- Run | Yrd Mat Min Mat Min Exi Min Mat Fac Was Fac Robot Analysis Total . | . . . . . . . . . . . Derelict Logs Recovered 1 | . . . . 1 . . . . . . Drone Launches . | . . . . . . . . . . . Drone Recoveries . | . . . . . . . . . . . Exploration | -11 -10 -10 -9 -9 -9 -8 -8 -7 -7 -7 ------------- Run | Yrd Mat Min Mat Min Exi Min Mat Fac Was Fac Turns Passed 4453 | 71 569 55 241 136 425 359 1137 865 186 409 Spaces Moved 3437 | 75 514 68 238 112 354 294 783 595 148 256 Core 5 | 3 . . . . . . . . . 2 Treads 2 | . . . . . . . . . . 2 Legs 2594 | . . . 56 112 354 294 783 595 148 252 Wheels 422 | 72 350 . . . . . . . . . Hover 347 | . 97 68 182 . . . . . . . Flight 67 | . 67 . . . . . . . . . Fastest Speed 48 | 50 56 56 48 120 120 120 120 122 122 50 Average Speed 109 | 78 80 56 75 120 120 120 121 122 122 123 Slowest Speed 450 | 80 117 56 190 120 120 120 123 123 122 450 Overloaded Moves . | . . . . . . . . . . . Propulsion Burnouts . | . . . . . . . . . . . Robots Hopped . | . . . . . . . . . . . Cave-ins Triggered . | . . . . . . . . . . . Exploration Rate (%) 35 | 3 51 15 21 34 61 63 41 13 80 5 Regions Visited 10 Branch Regions 4 Pre-discovered Areas . | . . . . . . . . . . . Known Exits Taken . | . . . . . . . . . . . Unknown Exits Taken 8 | 1 1 1 1 1 1 1 1 . . . Scrap Searched 1 | . . . . . . 1 . . . . Spaces Dug . | . . . . . . . . . . . Terrain Destroyed 35 | . . . 5 . . . 29 1 . . Melee . | . . . . . . . . . . . Projectile 2 | . . . . . . . 1 1 . . AOE 33 | . . . 5 . . . 28 . . . Terrain Rammed . | . . . . . . . . . . . Walls Destroyed . | . . . . . . . . . . . Machines Disabled . | . . . . . . . . . . . Actions | -11 -10 -10 -9 -9 -9 -8 -8 -7 -7 -7 --------- Run | Yrd Mat Min Mat Min Exi Min Mat Fac Was Fac Total 3853 | 83 610 84 283 113 354 296 901 661 153 315 Wait 79 | . 18 17 11 2 . . 5 6 . 20 Move 3428 | 74 513 67 237 111 353 293 782 595 147 256 Hop . | . . . . . . . . . . . Pick Up 49 | 3 21 . 3 . . 1 13 6 1 1 Fast Attach 23 | 6 3 . 3 . . . 9 2 . . Attach 31 | . 6 . 5 . . . 7 5 1 7 Detach 4 | . . . 2 . . . 1 . 1 . Swap 11 | . 3 . 3 . . . 2 1 2 . Drop 37 | . 14 . 6 . . . 13 3 . 1 Fire 160 | . 32 . 10 . . . 58 37 . 23 Melee 13 | . . . 3 . . 2 7 . . 1 Ram 6 | . . . . . . . . . . 6 Kick 9 | . . . . . . . 4 5 . . Crush . | . . . . . . . . . . . Escape Stasis . | . . . . . . . . . . . Rewire 3 | . . . . . 1 . . 1 1 . Trap . | . . . . . . . . . . . Miscellaneous . | . . . . . . . . . . . Route ------- -11/Scrapyard -10/Materials -10/Mines -9/Materials -9/Mines -9/Exiles -8/Mines -8/Materials -7/Factory -7/Waste -7/Factory History --------- Turn | Location | Event 2 | -11/Scrapyard | Met Revision 17 12 | -11/Scrapyard | Discovered new exit (range 16) 72 | -11/Scrapyard | Entered Materials 307 | -10/Materials | Build established: Mutant 628 | -10/Materials | Discovered new exit (range 12) 641 | -10/Materials | Entered Mines 654 | -10/Mines | Assisted by bots powering up and referring to "LRC-V3" 666 | -10/Mines | Discovered new exit (range 7) 696 | -10/Mines | Entered Materials 696 | -9/Materials | Accompanied by 3 allies 696 | -9/Materials | Evolved 2 slots: Propulsion x2 917 | -9/Materials | Met 8R-AWN 917 | -9/Materials | Discovered new exit (range 16) 937 | -9/Materials | Entered Mines 937 | -9/Mines | Accompanied by 2 allies 938 | -9/Mines | Followed 8R-AWN into the Mines 965 | -9/Mines | Learned Materials terminal intel 1065 | -9/Mines | Discovered new exit (range 5) 1073 | -9/Mines | Entered Exiles 1073 | -9/Exiles | Accompanied by 2 allies 1115 | -9/Exiles | Welcomed by 8R-AWN 1148 | -9/Exiles | Met EX-HEX 1162 | -9/Exiles | Build established: Scavenger-Mutant 1214 | -9/Exiles | Met EX-BIN 1240 | -9/Exiles | Aligned with FarCom system 1241 | -9/Exiles | Given EX-Vault access code 1332 | -9/Exiles | Met EX-DEC 1475 | -9/Exiles | Discovered new exit (range 14) 1498 | -9/Exiles | Entered Mines 1498 | -8/Mines | Accompanied by 2 allies 1845 | -8/Mines | Discovered new exit (range 8) 1857 | -8/Mines | Entered Materials 1857 | -8/Materials | Accompanied by 2 allies 1857 | -8/Materials | Evolved 2 slots: Power x1, Utility x1 1858 | -8/Materials | Loaded intel: 12 terminal locations 2647 | -8/Materials | Build established: Mutant 2989 | -8/Materials | Discovered new exit (range 3) 2994 | -8/Materials | Entered Factory 2994 | -7/Factory | Evolved 2 slots: Utility x2 3301 | -7/Factory | Build established: Scavenger-Mutant 3734 | -7/Factory | Garrison activated, responded to threat 3859 | -7/Factory | Sucked down chute 3859 | -7/Factory | Entered Waste 3859 | -7/Waste | The area was eerily silent 4020 | -7/Waste | Discovered new exit (range 19) 4045 | -7/Waste | Entered Factory 4093 | -7/Factory | Build established: Mutant 4427 | -7/Factory | System corruption reached 10% 4434 | -7/Factory | Core integrity fell below 50% 4449 | -7/Factory | Core integrity fell below 20% 4454 | -7/Factory | Destroyed by G-47 Trooper with Particle Gun Last Messages --------------- 04434_ R-06 Scavenger collects VTOL Module. 04434_ Jacked G-50 Soldier... 04436_ Assembly Bed disabled. 04436_ Hvy. Treads destroyed. 04438_ Kinecellerator destroyed. 04438_ R-06 Scavenger destroyed. 04438_ R-06 Scavenger collects Com. Wheel. 04439_ Acquired 11 matter. 04441_ R-06 Scavenger collects Unknown Storage. 04441_ Field Laser destroyed. 04442_ Lgt. Angular Momentum Engine destroyed. 04443_ Lrg. Battery destroyed. 04444_ Imp. Datajack destroyed. 04444_ Med. Storage Unit destroyed. 04444_ R-06 Scavenger collects VTOL Module. 04446_ Critical hit (Burn: +37). 04448_ Slammed into G-50 Soldier. 04453_ G-50 Soldier destroyed. [Achievement: Fist Fight] 04454_ Acquired 5 matter. Map ----- +----------------------------------------------------+ | ?????????????????????????????????????????????????? | | ?????????????????????????????????????????????????? | | ?????????????????????????????????????????????????? | | ?????????????????????????????????????????????????? | | ?????????????????????????????????????????????????? | | ?????????????????????????????????????????????????? | | ?????????????????????????????????????????????????? | | ?????????????????????????????????????????????????? | | ?????????????????????????????????????????????????? | | ?????????????????????????????????????????????????? | | ?????????????????????????????????????????????????? | | ?????????????????????????????????????????????????? | | ?????????????????????????????????????????????????? | | ?????????????????????????????????????????????????? | | ?????????????????????????????????????????????????? | | ?????????????????????????????????????????????????? | | ?????????????????????????????????????????????????? | | ?????????????##############??????????????????????? | | ?????????????# #??????????????????????? | | ?????????????# """""" #??????????????????????? | | ?????????????# """""" #??????????????????????? | | ?????????????# """""" #??????????????????????? | | ?????????????# """" " #??????????????????????? | | ?????????????# #??????????????????????? | | ?????????????# %# ?????????????????????? | | ?????????????# =%s !@# ????????????????????? | | ?????????????# gp ["#"S????????????????????? | | ?????????????# %g T"#"""???????????????????? | | ?????????????# %g ""# "" ??????????????????? | | ?????????????# % #?? ?????????????????? | | ????????################+######+############+##### | | ???? | | ???? % | | ???? | | ???? | | ????? ^ | | ?????###################+######+######+########### | | ?????????????????????? ????????????? ?????????? | | ???????????????????? ?????????????? ?????????? | | ?????????????????? ???????????????# ????????? | | ????????????????""" ????????????????# ????????? | | ????????????????"""?????????????????# ???????? | | ????????????????"???????????????????# ???????? | | ????????????????????????????????????# ??????? | | ????????????????????????????????????# ??????? | | ????????????????????????????????????# ?????? | | ????????????????????????????????????# ?????? | | ????????????????????????????????????# ????? | | ????????????????????????????????????# ! ????? | | ????????????????????????????????????##########???? | +----------------------------------------------------+ Best States ------------- Heat Dissipation 61 Energy Generation 23 Energy Capacity 455 Matter Stores 300 Matter Capacity 300 Sight Range 20 Terrain Scan Density 10 ECM Strength 1 Additional Mass Support 6 Armor Coverage 225 Evasion (%) 55 Recoil Reduction 2 Item Schematics ----------------- None Robot Schematics ------------------ None Fabricated ------------ Nothing Alien Tech Used ----------------- None Achievements -------------- Fist Fight Universal Adapter Challenges ------------ None Game ------ Seed SwarmNeutrinoThrower Manual? 0 Play Time 00:43:50 Cumulative 5.9 hours Start 2025.01.10 @ 19:37:06 End 2025.01.10 @ 20:22:58 Sessions 1 Manual Loads 0 Difficulty Rogue Special Mode None Game No. 6 Rogue 4 Adventurer 2 Explorer 0 Win Type - Total 0 Types 0/0/0/0/0/0/0/0/0 Lore% 5 Gallery% 11 Achievement% 12 Wizard Run 0 Options --------- Layout 1 ASCII 0 Keyboard 0 Movement Arrows Keybinds 0 Fullscreen 1 Font 32/SmallcapsGlow Map View 50x35 Zoom Use 0% Tactical HUD 1 Map Filters NONE Filters NONE Steam 1 RUN: 84ef151d-fb05-49b9-8668-8d96b5e95210